[Event "Late-Titled-Tuesday-Blitz-February-27-2024"]
[Site "Chess.com"]
[Date "2024.02.27"]
[Round "4"]
[White "Alphafischer2019"]
[Black "TenisMaster"]
[Result "0-1"]
[WhiteElo "2701"]
[BlackElo "2941"]
[TimeControl "180+1"]
[EndTime "14:39:06 PST"]
[Termination "TenisMaster won by resignation"]

1. Nf3 {[%clk 0:03:00.9]} 1... d5 {[%clk 0:02:59.4]} 2. g3 {[%clk 0:03:01.3]}
2... c6 {[%clk 0:02:59.3]} 3. Bg2 {[%clk 0:03:01.9]} 3... Bg4 {[%clk 0:02:59.8]}
4. h3 {[%clk 0:02:59.9]} 4... Bh5 {[%clk 0:02:59.5]} 5. d4 {[%clk 0:02:52.7]}
5... e6 {[%clk 0:02:58.3]} 6. c4 {[%clk 0:02:51.3]} 6... Nd7 {[%clk 0:02:56.7]}
7. cxd5 {[%clk 0:02:49.4]} 7... exd5 {[%clk 0:02:56]} 8. Nc3 {[%clk 0:02:48.6]}
8... Ngf6 {[%clk 0:02:50.2]} 9. O-O {[%clk 0:02:47.1]} 9... Bd6 {[%clk
0:02:49.8]} 10. Bf4 {[%clk 0:02:37.8]} 10... Bxf4 {[%clk 0:02:29.8]} 11. gxf4
{[%clk 0:02:37.1]} 11... Nf8 {[%clk 0:02:30.1]} 12. Ne5 {[%clk 0:02:30.4]} 12...
Ne6 {[%clk 0:02:30.1]} 13. Qd2 {[%clk 0:02:28]} 13... Nd7 {[%clk 0:02:22.5]} 14.
f5 {[%clk 0:01:55.6]} 14... Nc7 {[%clk 0:02:22.5]} 15. Nd3 {[%clk 0:01:48.3]}
15... O-O {[%clk 0:02:11.2]} 16. Qf4 {[%clk 0:01:22.7]} 16... Ne8 {[%clk
0:01:46.1]} 17. Qg3 {[%clk 0:01:21.3]} 17... Qf6 {[%clk 0:01:44.6]} 18. Qf4
{[%clk 0:00:20]} 18... Nd6 {[%clk 0:01:39.2]} 19. e4 {[%clk 0:00:13.7]} 19...
dxe4 {[%clk 0:01:33.7]} 20. Nxe4 {[%clk 0:00:14.6]} 20... Nxe4 {[%clk
0:01:33.1]} 21. Qxe4 {[%clk 0:00:15.5]} 21... Rfe8 {[%clk 0:01:29.3]} 22. Qf4
{[%clk 0:00:13.9]} 22... Be2 {[%clk 0:01:15.1]} 23. Rfd1 {[%clk 0:00:09.2]}
23... Bxd1 {[%clk 0:01:14]} 24. Rxd1 {[%clk 0:00:10.1]} 24... Re7 {[%clk
0:01:12]} 25. d5 {[%clk 0:00:09.9]} 25... cxd5 {[%clk 0:01:09.1]} 26. Bxd5
{[%clk 0:00:10.8]} 26... Rae8 {[%clk 0:01:03.1]} 27. Bxb7 {[%clk 0:00:08.9]}
27... Ne5 {[%clk 0:00:59.8]} 28. Nxe5 {[%clk 0:00:09.1]} 28... Rxe5 {[%clk
0:01:00]} 29. Bc6 {[%clk 0:00:08.8]} 29... Qxc6 {[%clk 0:00:57.3]} 0-1

[Event "Late-Titled-Tuesday-Blitz-February-27-2024"]
[Site "Chess.com"]
[Date "2024.02.27"]
[Round "4"]
[White "Bilan_Danila"]
[Black "Caisachess"]
[Result "1-0"]
[WhiteElo "2552"]
[BlackElo "2354"]
[TimeControl "180+1"]
[EndTime "14:39:07 PST"]
[Termination "Bilan_Danila won by resignation"]

1. d4 {[%clk 0:03:00.9]} 1... d5 {[%clk 0:02:59.4]} 2. Nf3 {[%clk 0:03:01.3]}
2... Nf6 {[%clk 0:02:59.8]} 3. c4 {[%clk 0:03:01.6]} 3... c6 {[%clk 0:03:00]} 4.
Nc3 {[%clk 0:03:01.9]} 4... e6 {[%clk 0:02:59.8]} 5. Bg5 {[%clk 0:03:01.4]} 5...
Nbd7 {[%clk 0:02:59.6]} 6. cxd5 {[%clk 0:03:00.9]} 6... exd5 {[%clk 0:02:58.2]}
7. e3 {[%clk 0:03:01.5]} 7... Be7 {[%clk 0:02:56.7]} 8. Bd3 {[%clk 0:03:02.1]}
8... Nh5 {[%clk 0:02:55.3]} 9. Bxe7 {[%clk 0:02:55.1]} 9... Qxe7 {[%clk
0:02:55.2]} 10. Qc2 {[%clk 0:02:55.7]} 10... g6 {[%clk 0:02:55.2]} 11. O-O
{[%clk 0:02:51.6]} 11... O-O {[%clk 0:02:53.1]} 12. Rab1 {[%clk 0:02:52.2]}
12... b5 {[%clk 0:02:49.7]} 13. Ne2 {[%clk 0:02:44]} 13... Nb6 {[%clk 0:02:50]}
14. Qxc6 {[%clk 0:02:35.5]} 14... Bd7 {[%clk 0:02:48.4]} 15. Qc5 {[%clk
0:02:34.6]} 15... Qxc5 {[%clk 0:02:40.3]} 16. dxc5 {[%clk 0:02:35.5]} 16... Nc4
{[%clk 0:02:39]} 17. Ned4 {[%clk 0:02:27.5]} 17... Rfc8 {[%clk 0:02:27.1]} 18.
b3 {[%clk 0:02:19.4]} 18... Na3 {[%clk 0:02:24]} 19. Rbc1 {[%clk 0:02:16.6]}
19... b4 {[%clk 0:02:17.6]} 20. Ne5 {[%clk 0:02:11.5]} 20... Be8 {[%clk
0:02:16.8]} 21. c6 {[%clk 0:01:53.9]} 21... Rc7 {[%clk 0:02:12.5]} 22. Rc5
{[%clk 0:01:53.4]} 22... Nf6 {[%clk 0:02:11.9]} 23. Ra5 {[%clk 0:01:39.8]} 23...
Kf8 {[%clk 0:02:04.7]} 24. g4 {[%clk 0:01:25.4]} 24... h6 {[%clk 0:01:57.7]} 25.
h4 {[%clk 0:01:22.3]} 25... Re7 {[%clk 0:01:50.9]} 26. f4 {[%clk 0:01:18.6]}
26... Rxe5 {[%clk 0:01:49]} 27. fxe5 {[%clk 0:01:15.6]} 27... Nxg4 {[%clk
0:01:49.9]} 28. e6 {[%clk 0:00:57.3]} 28... Ne5 {[%clk 0:01:37]} 29. Rxd5 {[%clk
0:00:51]} 29... Nxd3 {[%clk 0:01:06.4]} 30. c7 {[%clk 0:00:40.8]} 30... Rc8
{[%clk 0:00:58.1]} 31. exf7 {[%clk 0:00:37]} 31... Bxf7 {[%clk 0:00:54.7]} 32.
Rd8+ {[%clk 0:00:35.5]} 32... Ke7 {[%clk 0:00:53.1]} 33. Rxc8 {[%clk 0:00:35.1]}
1-0

[Event "Late-Titled-Tuesday-Blitz-February-27-2024"]
[Site "Chess.com"]
[Date "2024.02.27"]
[Round "4"]
[White "Adar_07"]
[Black "Njal28"]
[Result "0-1"]
[WhiteElo "2784"]
[BlackElo "3029"]
[TimeControl "180+1"]
[EndTime "14:39:08 PST"]
[Termination "Njal28 won by resignation"]

1. Nf3 {[%clk 0:03:00.9]} 1... Nf6 {[%clk 0:02:59.2]} 2. d4 {[%clk 0:03:00.4]}
2... d5 {[%clk 0:02:51.7]} 3. Bf4 {[%clk 0:02:56.5]} 3... c5 {[%clk 0:02:49.9]}
4. e3 {[%clk 0:02:55.8]} 4... Nc6 {[%clk 0:02:50.4]} 5. c3 {[%clk 0:02:54]} 5...
Qb6 {[%clk 0:02:49.3]} 6. Qb3 {[%clk 0:02:49.9]} 6... c4 {[%clk 0:02:48.5]} 7.
Qc2 {[%clk 0:02:48.3]} 7... Bf5 {[%clk 0:02:48.9]} 8. Qc1 {[%clk 0:02:49]} 8...
e6 {[%clk 0:02:47.8]} 9. Nbd2 {[%clk 0:02:49.1]} 9... Rc8 {[%clk 0:02:39]} 10.
Be2 {[%clk 0:02:45]} 10... h6 {[%clk 0:02:37.2]} 11. Ne5 {[%clk 0:02:44.8]}
11... Be7 {[%clk 0:02:27.1]} 12. g4 {[%clk 0:02:33.5]} 12... Bh7 {[%clk
0:02:23.4]} 13. h4 {[%clk 0:02:30.2]} 13... Ne4 {[%clk 0:02:23.3]} 14. Nxe4
{[%clk 0:02:22.6]} 14... Bxe4 {[%clk 0:02:24.2]} 15. f3 {[%clk 0:02:23.3]} 15...
Bh7 {[%clk 0:02:24.5]} 16. g5 {[%clk 0:02:22.7]} 16... Bf5 {[%clk 0:01:58.5]}
17. gxh6 {[%clk 0:02:18.3]} 17... gxh6 {[%clk 0:01:53.9]} 18. e4 {[%clk
0:01:58.9]} 18... dxe4 {[%clk 0:01:49.1]} 19. Nxc4 {[%clk 0:01:58.5]} 19... Qd8
{[%clk 0:01:49.4]} 20. Ne3 {[%clk 0:01:38.2]} 20... Bxh4+ {[%clk 0:01:41.4]} 21.
Kf1 {[%clk 0:01:30.9]} 21... exf3 {[%clk 0:01:41.8]} 22. Bxf3 {[%clk 0:01:28.9]}
22... Nxd4 {[%clk 0:01:39.4]} 23. Bxb7 {[%clk 0:01:08.1]} 23... Bd3+ {[%clk
0:01:36.1]} 24. Kg2 {[%clk 0:01:06.9]} 24... Rg8+ {[%clk 0:01:36.5]} 25. Kh3
{[%clk 0:01:07.3]} 25... Ne2 {[%clk 0:01:31.6]} 26. Qf1 {[%clk 0:01:01]} 26...
Rc5 {[%clk 0:01:19.6]} 27. Qf3 {[%clk 0:00:53.9]} 27... Nxf4+ {[%clk 0:00:52.1]}
28. Qxf4 {[%clk 0:00:54.1]} 28... Rh5 {[%clk 0:00:50.3]} 29. Bc6+ {[%clk
0:00:35]} 29... Kf8 {[%clk 0:00:50.2]} 0-1

[Event "Late-Titled-Tuesday-Blitz-February-27-2024"]
[Site "Chess.com"]
[Date "2024.02.27"]
[Round "4"]
[White "Aleksandar-Topalov"]
[Black "Yaacovn"]
[Result "0-1"]
[WhiteElo "2374"]
[BlackElo "2835"]
[TimeControl "180+1"]
[EndTime "14:39:08 PST"]
[Termination "Yaacovn won on time"]

1. b3 {[%clk 0:03:00.9]} 1... c5 {[%clk 0:02:59.9]} 2. Bb2 {[%clk 0:03:00.2]}
2... Nf6 {[%clk 0:03:00.5]} 3. Nf3 {[%clk 0:02:59.8]} 3... g6 {[%clk 0:03:01]}
4. c4 {[%clk 0:02:58.5]} 4... Bg7 {[%clk 0:03:01.3]} 5. e3 {[%clk 0:02:56.9]}
5... O-O {[%clk 0:03:01]} 6. Be2 {[%clk 0:02:57]} 6... Nc6 {[%clk 0:03:01.3]} 7.
O-O {[%clk 0:02:56.8]} 7... b6 {[%clk 0:03:01.7]} 8. d4 {[%clk 0:02:52.3]} 8...
cxd4 {[%clk 0:03:00.5]} 9. Nxd4 {[%clk 0:02:52.1]} 9... Bb7 {[%clk 0:03:00.8]}
10. Bf3 {[%clk 0:02:51.7]} 10... Qc8 {[%clk 0:03:00.8]} 11. Nxc6 {[%clk
0:02:45.4]} 11... Bxc6 {[%clk 0:02:56.5]} 12. Bxc6 {[%clk 0:02:44.4]} 12... dxc6
{[%clk 0:02:56.6]} 13. Qc2 {[%clk 0:02:36.9]} 13... Rd8 {[%clk 0:02:54.2]} 14.
Nc3 {[%clk 0:02:36.6]} 14... Qf5 {[%clk 0:02:52.5]} 15. Qxf5 {[%clk 0:02:21.7]}
15... gxf5 {[%clk 0:02:53.4]} 16. Rad1 {[%clk 0:02:20.8]} 16... Ne4 {[%clk
0:02:42.5]} 17. Nxe4 {[%clk 0:02:19.5]} 17... fxe4 {[%clk 0:02:42.6]} 18. Bxg7
{[%clk 0:02:17.7]} 18... Kxg7 {[%clk 0:02:43.5]} 19. f3 {[%clk 0:02:13.3]} 19...
exf3 {[%clk 0:02:43]} 20. gxf3 {[%clk 0:02:12.8]} 20... Kf6 {[%clk 0:02:42.6]}
21. Kf2 {[%clk 0:02:12.8]} 21... a5 {[%clk 0:02:38]} 22. Ke2 {[%clk 0:01:56]}
22... a4 {[%clk 0:02:28.2]} 23. Rxd8 {[%clk 0:00:50.6]} 23... Rxd8 {[%clk
0:02:27.9]} 24. bxa4 {[%clk 0:00:49.6]} 24... Ra8 {[%clk 0:02:26.3]} 25. Rb1
{[%clk 0:00:50.1]} 25... Ra6 {[%clk 0:02:25.9]} 26. Kd3 {[%clk 0:00:40.7]} 26...
Ke6 {[%clk 0:02:26.3]} 27. Kc3 {[%clk 0:00:35.3]} 27... Kd6 {[%clk 0:02:20.3]}
28. Kb3 {[%clk 0:00:34.4]} 28... Ra8 {[%clk 0:02:17.1]} 29. Rg1 {[%clk
0:00:33.7]} 29... Rd8 {[%clk 0:02:15.2]} 30. Rg7 {[%clk 0:00:33]} 30... Ke6
{[%clk 0:02:15.4]} 31. Rxh7 {[%clk 0:00:32.4]} 31... Rd3+ {[%clk 0:02:15.6]} 32.
Kb4 {[%clk 0:00:29.5]} 32... Rxe3 {[%clk 0:02:16]} 33. Rh6+ {[%clk 0:00:25.8]}
33... f6 {[%clk 0:02:16]} 34. a5 {[%clk 0:00:20.2]} 34... bxa5+ {[%clk
0:02:12.8]} 35. Kxa5 {[%clk 0:00:20.3]} 35... Rxf3 {[%clk 0:02:13.5]} 36. Kb6
{[%clk 0:00:20.4]} 36... Ra3 {[%clk 0:02:13]} 37. Kxc6 {[%clk 0:00:19.8]} 37...
Rxa2 {[%clk 0:02:13.5]} 38. c5 {[%clk 0:00:19.5]} 38... Rb2 {[%clk 0:02:06.7]}
39. h4 {[%clk 0:00:18.6]} 39... Kf5 {[%clk 0:02:06.5]} 40. Rh7 {[%clk
0:00:17.9]} 40... e5 {[%clk 0:02:06.5]} 41. h5 {[%clk 0:00:17.9]} 41... Kg5
{[%clk 0:02:00.9]} 42. Rf7 {[%clk 0:00:13.3]} 42... Rf2 {[%clk 0:01:55.3]} 43.
Rh7 {[%clk 0:00:09.5]} 43... e4 {[%clk 0:01:51]} 44. Kd5 {[%clk 0:00:09.5]}
44... e3 {[%clk 0:01:50.8]} 45. c6 {[%clk 0:00:09.9]} 45... e2 {[%clk
0:01:50.3]} 46. Re7 {[%clk 0:00:09.9]} 46... Rf5+ {[%clk 0:01:50]} 47. Kd4
{[%clk 0:00:06.8]} 47... Re5 {[%clk 0:01:49.5]} 48. c7 {[%clk 0:00:02.5]} 48...
e1=Q {[%clk 0:01:47.3]} 49. c8=Q {[%clk 0:00:01.3]} 49... Qe3+ {[%clk
0:01:47.1]} 0-1

[Event "Late-Titled-Tuesday-Blitz-February-27-2024"]
[Site "Chess.com"]
[Date "2024.02.27"]
[Round "4"]
[White "zajka-molotok"]
[Black "NCchamp"]
[Result "1-0"]
[WhiteElo "2512"]
[BlackElo "2339"]
[TimeControl "180+1"]
[EndTime "14:39:08 PST"]
[Termination "zajka-molotok won by resignation"]

1. e4 {[%clk 0:02:58.4]} 1... c6 {[%clk 0:02:57.8]} 2. d4 {[%clk 0:02:57.1]}
2... d5 {[%clk 0:02:58.7]} 3. f3 {[%clk 0:02:54.9]} 3... e6 {[%clk 0:02:55.6]}
4. Nc3 {[%clk 0:02:48.8]} 4... Bb4 {[%clk 0:02:55.1]} 5. Be3 {[%clk 0:02:40.9]}
5... dxe4 {[%clk 0:02:53.5]} 6. fxe4 {[%clk 0:02:39.9]} 6... Qh4+ {[%clk
0:02:46.5]} 7. Kd2 {[%clk 0:02:23.3]} 7... Qxe4 {[%clk 0:02:34.5]} 8. Nf3 {[%clk
0:02:19.4]} 8... Bxc3+ {[%clk 0:02:30.6]} 9. bxc3 {[%clk 0:02:19]} 9... Nf6
{[%clk 0:02:28.6]} 10. Bd3 {[%clk 0:02:18.6]} 10... Qg4 {[%clk 0:02:28.8]} 11.
Qe2 {[%clk 0:02:12.5]} 11... Nd5 {[%clk 0:02:23.6]} 12. h3 {[%clk 0:02:02.1]}
12... Qg3 {[%clk 0:02:13.8]} 13. Raf1 {[%clk 0:01:41.4]} 13... Nxe3 {[%clk
0:02:12.5]} 14. Qxe3 {[%clk 0:01:35.6]} 14... Nd7 {[%clk 0:02:07.8]} 15. Kc1
{[%clk 0:01:33.5]} 15... Nf6 {[%clk 0:02:07.6]} 16. Qd2 {[%clk 0:01:27.8]} 16...
Bd7 {[%clk 0:01:45.2]} 17. Ne5 {[%clk 0:01:26.8]} 17... h6 {[%clk 0:01:41.2]}
18. h4 {[%clk 0:01:11]} 18... Ng4 {[%clk 0:00:31.8]} 19. Rh3 {[%clk 0:01:02.1]}
19... Qxh3 {[%clk 0:00:28.3]} 20. gxh3 {[%clk 0:01:02.7]} 20... Nxe5 {[%clk
0:00:27.6]} 21. dxe5 {[%clk 0:01:03.4]} 21... O-O-O {[%clk 0:00:27.5]} 22. Rxf7
{[%clk 0:01:01.8]} 22... g5 {[%clk 0:00:27.1]} 23. h5 {[%clk 0:00:57.3]} 23...
Be8 {[%clk 0:00:27.4]} 24. Re7 {[%clk 0:00:55]} 24... Bxh5 {[%clk 0:00:22.5]}
25. Rxe6 {[%clk 0:00:54.2]} 25... Rhf8 {[%clk 0:00:19.3]} 26. Rxh6 {[%clk
0:00:52.3]} 26... Rf1+ {[%clk 0:00:17.6]} 27. Bxf1 {[%clk 0:00:49.7]} 27... Rxd2
{[%clk 0:00:17.1]} 28. Kxd2 {[%clk 0:00:50.6]} 1-0

[Event "Late-Titled-Tuesday-Blitz-February-27-2024"]
[Site "Chess.com"]
[Date "2024.02.27"]
[Round "4"]
[White "Matalon"]
[Black "shirovin"]
[Result "1-0"]
[WhiteElo "2453"]
[BlackElo "2068"]
[TimeControl "180+1"]
[EndTime "14:39:08 PST"]
[Termination "Matalon won on time"]

1. e4 {[%clk 0:03:00.9]} 1... c5 {[%clk 0:02:59.5]} 2. Nf3 {[%clk 0:03:00.9]}
2... d6 {[%clk 0:02:59.9]} 3. d4 {[%clk 0:03:01.3]} 3... cxd4 {[%clk 0:03:00.4]}
4. Nxd4 {[%clk 0:03:01.7]} 4... Nf6 {[%clk 0:03:00.8]} 5. Nc3 {[%clk 0:03:02.3]}
5... a6 {[%clk 0:03:01]} 6. Bg5 {[%clk 0:03:02.1]} 6... e6 {[%clk 0:03:00.8]} 7.
f4 {[%clk 0:03:02.8]} 7... Be7 {[%clk 0:02:56.6]} 8. Qf3 {[%clk 0:03:02.6]} 8...
Nbd7 {[%clk 0:02:53.9]} 9. O-O-O {[%clk 0:03:00.8]} 9... h6 {[%clk 0:02:50.7]}
10. Bxf6 {[%clk 0:02:33.6]} 10... Bxf6 {[%clk 0:02:49.8]} 11. g4 {[%clk
0:02:22.8]} 11... Qc7 {[%clk 0:02:33]} 12. h4 {[%clk 0:02:21.9]} 12... Bxd4
{[%clk 0:02:28.3]} 13. Rxd4 {[%clk 0:02:20.9]} 13... Nb6 {[%clk 0:02:28.8]} 14.
Be2 {[%clk 0:01:50.5]} 14... e5 {[%clk 0:01:56.4]} 15. Rd2 {[%clk 0:01:48.8]}
15... Be6 {[%clk 0:01:35.4]} 16. Rhd1 {[%clk 0:01:48.3]} 16... O-O-O {[%clk
0:01:33.5]} 17. f5 {[%clk 0:01:34.7]} 17... Bc4 {[%clk 0:01:30.6]} 18. Bxc4
{[%clk 0:01:27.7]} 18... Nxc4 {[%clk 0:01:27.2]} 19. Rd3 {[%clk 0:01:27.7]}
19... Qb6 {[%clk 0:01:05.6]} 20. b3 {[%clk 0:01:24]} 20... Na3 {[%clk
0:00:57.2]} 21. Nd5 {[%clk 0:01:18.2]} 21... Qa5 {[%clk 0:00:42.1]} 22. b4
{[%clk 0:01:07.5]} 22... Qb5 {[%clk 0:00:15.4]} 23. Rxa3 {[%clk 0:01:06.5]}
23... Kb8 {[%clk 0:00:13.4]} 24. Qd3 {[%clk 0:00:58.7]} 24... Qc6 {[%clk
0:00:11.2]} 25. Rc3 {[%clk 0:00:55.8]} 25... Qa4 {[%clk 0:00:10]} 26. Kb2 {[%clk
0:00:55.6]} 26... Qd7 {[%clk 0:00:04.1]} 27. Rc7 {[%clk 0:00:54.8]} 1-0

[Event "Late-Titled-Tuesday-Blitz-February-27-2024"]
[Site "Chess.com"]
[Date "2024.02.27"]
[Round "4"]
[White "cthulhuuu"]
[Black "Malev212"]
[Result "0-1"]
[WhiteElo "2442"]
[BlackElo "2659"]
[TimeControl "180+1"]
[EndTime "14:39:11 PST"]
[Termination "Malev212 won by resignation"]

1. e4 {[%clk 0:03:00.9]} 1... c5 {[%clk 0:02:57.6]} 2. Nf3 {[%clk 0:03:00.4]}
2... e6 {[%clk 0:02:57]} 3. d3 {[%clk 0:03:00.2]} 3... Nc6 {[%clk 0:02:54.2]} 4.
g3 {[%clk 0:03:00.3]} 4... Bd6 {[%clk 0:02:54]} 5. Bg2 {[%clk 0:02:58.1]} 5...
Nge7 {[%clk 0:02:53.9]} 6. O-O {[%clk 0:02:57.7]} 6... Bc7 {[%clk 0:02:53.6]} 7.
Re1 {[%clk 0:02:57.3]} 7... O-O {[%clk 0:02:52.9]} 8. c3 {[%clk 0:02:53.8]} 8...
d5 {[%clk 0:02:51.8]} 9. e5 {[%clk 0:02:51.2]} 9... b5 {[%clk 0:02:49.4]} 10. h4
{[%clk 0:02:47.4]} 10... a5 {[%clk 0:02:47.4]} 11. h5 {[%clk 0:02:47.4]} 11...
h6 {[%clk 0:02:42.2]} 12. Bf4 {[%clk 0:02:46.9]} 12... b4 {[%clk 0:02:37.2]} 13.
Nbd2 {[%clk 0:02:44.5]} 13... a4 {[%clk 0:02:36]} 14. a3 {[%clk 0:02:42.7]}
14... bxc3 {[%clk 0:02:34.5]} 15. bxc3 {[%clk 0:02:43.6]} 15... Ba6 {[%clk
0:02:34.2]} 16. Nf1 {[%clk 0:02:42.6]} 16... Na5 {[%clk 0:02:31.5]} 17. N1h2
{[%clk 0:02:38.9]} 17... Nb3 {[%clk 0:02:27.2]} 18. Ra2 {[%clk 0:02:37.8]} 18...
Ba5 {[%clk 0:02:19.8]} 19. Rc2 {[%clk 0:02:34.7]} 19... d4 {[%clk 0:02:17.3]}
20. c4 {[%clk 0:01:53.6]} 20... Bxe1 {[%clk 0:02:09.8]} 21. Qxe1 {[%clk
0:01:54.5]} 21... Rb8 {[%clk 0:02:04.8]} 22. g4 {[%clk 0:01:46.8]} 22... Bb7
{[%clk 0:02:03.9]} 23. g5 {[%clk 0:01:43.6]} 23... hxg5 {[%clk 0:01:58.9]} 24.
Bxg5 {[%clk 0:01:44.5]} 24... Qc7 {[%clk 0:01:55]} 25. Ng4 {[%clk 0:01:41.4]}
25... Nf5 {[%clk 0:01:48.6]} 26. Rb2 {[%clk 0:01:36.9]} 26... Na5 {[%clk
0:01:20.3]} 27. Rxb7 {[%clk 0:01:12.1]} 27... Rxb7 {[%clk 0:01:19]} 28. Qd2
{[%clk 0:01:00.3]} 28... Rb1+ {[%clk 0:01:15.5]} 29. Kh2 {[%clk 0:00:59.1]}
29... Nc6 {[%clk 0:01:12.2]} 30. Qf4 {[%clk 0:00:54.7]} 30... f6 {[%clk
0:01:09.9]} 31. exf6 {[%clk 0:00:10.7]} 31... Qxf4+ {[%clk 0:01:08.8]} 32. Bxf4
{[%clk 0:00:11.6]} 32... gxf6 {[%clk 0:01:08.5]} 33. Bd6 {[%clk 0:00:11.5]}
33... Nxd6 {[%clk 0:01:07.7]} 0-1

[Event "Late-Titled-Tuesday-Blitz-February-27-2024"]
[Site "Chess.com"]
[Date "2024.02.27"]
[Round "4"]
[White "ElVital"]
[Black "2L8IWUN"]
[Result "1-0"]
[WhiteElo "2368"]
[BlackElo "2146"]
[TimeControl "180+1"]
[EndTime "14:39:11 PST"]
[Termination "ElVital won by resignation"]

1. e4 {[%clk 0:03:00.9]} 1... e5 {[%clk 0:01:19.9]} 2. f4 {[%clk 0:02:58.7]}
2... exf4 {[%clk 0:01:19.4]} 3. Nf3 {[%clk 0:02:59.3]} 3... d5 {[%clk
0:01:19.8]} 4. exd5 {[%clk 0:02:59]} 4... Nf6 {[%clk 0:01:18.6]} 5. Bb5+ {[%clk
0:02:58.5]} 5... Nbd7 {[%clk 0:01:15.4]} 6. c4 {[%clk 0:02:56.3]} 6... a6 {[%clk
0:01:15.2]} 7. Ba4 {[%clk 0:02:55.9]} 7... b5 {[%clk 0:01:14.7]} 8. cxb5 {[%clk
0:02:55]} 8... Nxd5 {[%clk 0:00:52.7]} 9. O-O {[%clk 0:02:49.8]} 9... Be7 {[%clk
0:00:48.2]} 10. Nc3 {[%clk 0:02:45.5]} 10... N7b6 {[%clk 0:00:34.3]} 11. Bc2
{[%clk 0:02:43.6]} 11... O-O {[%clk 0:00:29.2]} 12. d4 {[%clk 0:02:38.5]} 12...
axb5 {[%clk 0:00:28.8]} 13. Qd3 {[%clk 0:02:34.2]} 13... g6 {[%clk 0:00:25.9]}
14. Nxb5 {[%clk 0:02:33.7]} 14... Ba6 {[%clk 0:00:23.4]} 15. Qb3 {[%clk
0:02:31.2]} 15... Qd7 {[%clk 0:00:19.1]} 16. Bd3 {[%clk 0:02:21.2]} 16... Rab8
{[%clk 0:00:18.8]} 17. Ne5 {[%clk 0:02:20.9]} 17... Qe6 {[%clk 0:00:15]} 18. a4
{[%clk 0:02:01.7]} 18... c6 {[%clk 0:00:14.6]} 19. Nc3 {[%clk 0:01:45.3]} 19...
Nc4 {[%clk 0:00:14.3]} 20. Qd1 {[%clk 0:01:32]} 20... Nxe5 {[%clk 0:00:13.6]}
21. Bxa6 {[%clk 0:01:31.6]} 21... Nd7 {[%clk 0:00:12.7]} 22. Re1 {[%clk
0:01:28.5]} 22... Qd6 {[%clk 0:00:12.2]} 23. Ne4 {[%clk 0:01:28.6]} 23... Qb4
{[%clk 0:00:12]} 24. Rf1 {[%clk 0:01:12.9]} 24... Rfe8 {[%clk 0:00:12.3]} 25.
Kh1 {[%clk 0:00:59.3]} 25... Qb6 {[%clk 0:00:12.1]} 26. Bc4 {[%clk 0:00:58.3]}
26... f5 {[%clk 0:00:10]} 27. a5 {[%clk 0:00:57.3]} 27... Nf6 {[%clk 0:00:10.9]}
28. axb6 {[%clk 0:00:56.8]} 1-0

[Event "Late-Titled-Tuesday-Blitz-February-27-2024"]
[Site "Chess.com"]
[Date "2024.02.27"]
[Round "4"]
[White "Roedor"]
[Black "katharinareinecke"]
[Result "1-0"]
[WhiteElo "2302"]
[BlackElo "2005"]
[TimeControl "180+1"]
[EndTime "14:39:13 PST"]
[Termination "Roedor won on time"]

1. c4 {[%clk 0:03:00.9]} 1... c6 {[%clk 0:02:59.2]} 2. Nf3 {[%clk 0:02:59.6]}
2... d5 {[%clk 0:02:59.1]} 3. d4 {[%clk 0:02:59.2]} 3... Nf6 {[%clk 0:02:55.4]}
4. Qb3 {[%clk 0:02:59.1]} 4... e6 {[%clk 0:02:53.6]} 5. Bg5 {[%clk 0:02:56]}
5... Be7 {[%clk 0:02:52.9]} 6. Nc3 {[%clk 0:02:56]} 6... O-O {[%clk 0:02:52.3]}
7. e3 {[%clk 0:02:56.2]} 7... a6 {[%clk 0:02:49.2]} 8. cxd5 {[%clk 0:02:52.4]}
8... cxd5 {[%clk 0:02:46.9]} 9. Bd3 {[%clk 0:02:51.1]} 9... Nc6 {[%clk
0:02:44.6]} 10. O-O {[%clk 0:02:50.6]} 10... Na5 {[%clk 0:02:38.9]} 11. Qc2
{[%clk 0:02:50.2]} 11... g6 {[%clk 0:02:31.6]} 12. Rfc1 {[%clk 0:02:48.7]} 12...
Nc4 {[%clk 0:02:26.7]} 13. Ne5 {[%clk 0:02:45.9]} 13... Nxe5 {[%clk 0:02:13.2]}
14. dxe5 {[%clk 0:02:46.8]} 14... Nd7 {[%clk 0:02:13]} 15. Bh6 {[%clk
0:02:45.6]} 15... Nxe5 {[%clk 0:01:44.3]} 16. Bxf8 {[%clk 0:02:44.2]} 16... Bxf8
{[%clk 0:01:44.2]} 17. Rd1 {[%clk 0:02:44]} 17... b5 {[%clk 0:01:39.5]} 18. a4
{[%clk 0:02:35]} 18... b4 {[%clk 0:01:38.4]} 19. Ne2 {[%clk 0:02:35.1]} 19...
Bg7 {[%clk 0:01:32.1]} 20. Rac1 {[%clk 0:02:30.7]} 20... Bd7 {[%clk 0:01:25]}
21. b3 {[%clk 0:02:28.5]} 21... Rc8 {[%clk 0:01:22]} 22. Qd2 {[%clk 0:02:28.1]}
22... Nxd3 {[%clk 0:01:00.7]} 23. Qxd3 {[%clk 0:02:29]} 23... Qb6 {[%clk
0:00:47]} 24. Rxc8+ {[%clk 0:02:27.3]} 24... Bxc8 {[%clk 0:00:46]} 25. Rc1
{[%clk 0:02:27.6]} 25... Bb7 {[%clk 0:00:41.2]} 26. h3 {[%clk 0:02:20.5]} 26...
e5 {[%clk 0:00:33.5]} 27. Kh1 {[%clk 0:02:05.8]} 27... d4 {[%clk 0:00:32.7]} 28.
exd4 {[%clk 0:01:56]} 28... exd4 {[%clk 0:00:31.7]} 29. Rc4 {[%clk 0:01:55]}
29... Qe6 {[%clk 0:00:14.9]} 30. Kh2 {[%clk 0:01:34.3]} 30... Be5+ {[%clk
0:00:13.6]} 31. Ng3 {[%clk 0:01:29.2]} 31... Bd5 {[%clk 0:00:12.8]} 32. Rxb4
{[%clk 0:01:29.1]} 32... h5 {[%clk 0:00:09.9]} 33. Rxd4 {[%clk 0:01:24.8]} 33...
h4 {[%clk 0:00:07.9]} 34. Rxd5 {[%clk 0:01:17.3]} 34... hxg3+ {[%clk 0:00:07.9]}
35. fxg3 {[%clk 0:01:18.2]} 35... Kh7 {[%clk 0:00:02.4]} 36. Rxe5 {[%clk
0:01:14.4]} 36... Qxe5 {[%clk 0:00:02.3]} 37. Qxa6 {[%clk 0:01:14.9]} 1-0